Workbook

Sheet Лист1
A1: Школа | C1: МКОУ Усманская ООШ | F1: Утвердил: | G1: должность | H1: Директор
A2: Типовое примерное меню приготавливаемых блюд | G2: фамилия | H2: Аптулова Гульнур Сайбавовна
A3: Возрастная категория | E3: 7-11 лет | G3: дата | H3: 12 | I3: 1 | J3: 2026
H4: день | I4: месяц | J4: год
A5: Неделя | B5: День недели | C5: Прием пищи | D5: Раздел меню | E5: Блюда | F5: Вес блюда, г | G5: Белки | H5: Жиры | I5: Углеводы | J5: Калорийность | K5: № рецептуры | L5: Цена
A6: 1 | B6: 1 | C6: Завтрак | D6: гор.блюдо | E6: Суп с фрикадельками с макаронными изделиями | F6: 250 | G6: 43 | H6: 22 | I6: 70 | J6: 284 | K6: 26 | L6: 38.68
D7: хлеб | E7: Хлеб пшеничный | F7: 30 | G7: 2 | H7: 1 | I7: 15 | J7: 70 | K7: пром | L7: 2.62
D8: закуска | E8: Салат из отварной свеклы | F8: 65 | G8: 1 | H8: 3 | I8: 3 | J8: 46 | K8: пром | L8: 4.09
D9: гор.напиток | E9: Чай с сахаром | F9: 200 | G9: 0 | H9: 0 | I9: 7 | J9: 27 | K9: 19 | L9: 3.16
D10: фрукты | E10: Яблоко | F10: 178 | G10: 1 | H10: 0 | I10: 20 | J10: 88 | K10: 54-2з | L10: 39.16
D11: итого | F11: =SUM(F6:F10) -> 723 | G11: 47.81 | H11: =SUM(H6:H10) -> 26 | I11: 115 | J11: 515 | L11: =SUM(L6:L10) -> 87.71
A12: =A6 -> 1 | B12: =B6 -> 1 | C12: Обед | D12: закуска
D13: 1 блюдо
D14: 2 блюдо
D15: гарнир
D16: напиток
D17: хлеб бел.
D18: хлеб черн.
D21: итого | F21: =SUM(F12:F20) -> 0 | G21: =SUM(G12:G20) -> 0 | H21: 0 | I21: 0 | J21: 0 | L21: =SUM(L12:L20) -> 0
A22: =A6 -> 1 | B22: =B6 -> 1 | C22: Итого за день: | F22: =F11+F21 -> 723 | G22: =G11+G21 -> 47.81 | H22: 26 | I22: 115 | J22: 515 | L22: =L11+L21 -> 87.71
A23: 1 | B23: 2 | C23: Завтрак | D23: гор.блюдо | E23: Гуляш из говядины | F23: 100 | G23: 14 | H23: 13 | I23: 3 | J23: 185 | K23: 41 | L23: 57.89
D24: гарнир | E24: Каша гречневая рассыпчатая | F24: 200 | G24: 8 | H24: 6 | I24: 36 | J24: 234 | K24: 70 | L24: 9.58
D25: хлеб | E25: Хлеб пшеничный | F25: 30 | G25: 2 | H25: 1 | I25: 170 | J25: 70 | K25: 119 | L25: 2.62
D26: гор.напиток | E26: Какао с молоком | F26: 200 | G26: 4 | H26: 4 | I26: 18 | J26: 119 | L26: 17.32
D31: итого | F31: =SUM(F23:F30) -> 530 | G31: =SUM(G23:G30) -> 28 | H31: =SUM(H23:H30) -> 24 | I31: =SUM(I23:I30) -> 227 | J31: 616.9 | L31: =SUM(L23:L30) -> 87.41
A32: =A23 -> 1 | B32: =B23 -> 2 | C32: Обед | D32: закуска
D33: 1 блюдо
D34: 2 блюдо
D35: гарнир
D36: напиток
D37: хлеб бел.
D38: хлеб черн.
D41: итого | F41: =SUM(F32:F40) -> 0 | G41: =SUM(G32:G40) -> 0 | H41: =SUM(H32:H40) -> 0 | I41: =SUM(I32:I40) -> 0 | J41: =SUM(J32:J40) -> 0 | L41: 0
A42: =A23 -> 1 | B42: =B23 -> 2 | C42: Итого за день: | F42: =F31+F41 -> 530 | G42: =G31+G41 -> 28 | H42: =H31+H41 -> 24 | I42: =I31+I41 -> 227 | J42: =J31+J41 -> 616.9 | L42: 87.41
A43: 1 | B43: 3 | C43: Завтрак | D43: гор.блюдо | E43: Котлета | F43: 100 | G43: 14 | H43: 13 | I43: 33 | J43: 221 | K43: 45 | L43: 32.95
D44: гарнир | E44: Макароны отварные | F44: 200 | G44: 5 | H44: 5 | I44: 33 | J44: 197 | K44: 54-1г | L44: 12.74
D45: хлеб | E45: Хлеб пшеничный | F45: 30 | G45: 2 | H45: 1 | I45: 15 | J45: 70 | K45: пром | L45: 2.62
D46: гор.напиток | E46: Кофейный напиток с молоком | F46: 200 | G46: 3 | H46: 7 | I46: 56 | J46: 296 | K46: 54-23гн | L46: 15.78
D47: фрукты | E47: Яблоко | F47: 108 | G47: 1 | H47: 0 | I47: 20 | J47: 80 | L47: 23.76
D50: итого | F50: =SUM(F43:F49) -> 638 | G50: =SUM(G43:G49) -> 25 | H50: =SUM(H43:H49) -> 26 | I50: =SUM(I43:I49) -> 157 | J50: =SUM(J43:J49) -> 864 | L50: 87.85
A51: =A43 -> 1 | B51: =B43 -> 3 | C51: Обед | D51: закуска
D52: 1 блюдо
D53: 2 блюдо
D54: гарнир
D55: напиток
D56: хлеб бел.
D57: хлеб черн.
D60: итого | F60: =SUM(F51:F59) -> 0 | G60: =SUM(G51:G59) -> 0 | H60: =SUM(H51:H59) -> 0 | I60: =SUM(I51:I59) -> 0 | J60: =SUM(J51:J59) -> 0 | L60: 0
A61: =A43 -> 1 | B61: =B43 -> 3 | C61: Итого за день: | F61: =F50+F60 -> 638 | G61: =G50+G60 -> 25 | H61: =H50+H60 -> 26 | I61: =I50+I60 -> 157 | J61: =J50+J60 -> 864 | L61: 87.85
A62: 1 | B62: 4 | C62: Завтрак | D62: гор.блюдо | E62: Плов из отварной говядины | F62: 250 | G62: 15 | H62: 15 | I62: 39 | J62: 248 | K62: 54-4с | L62: 69.04
D63: хлеб | E63: Хлеб пшеничный | F63: 30 | G63: 2 | H63: 1 | I63: 15 | J63: 70 | L63: 2.62
D64: закуска | E64: Салат из свеклы отварной | F64: 65 | G64: 1 | H64: 3 | I64: 5 | J64: 46 | K64: пром | L64: 4.49
D65: гор.напиток | E65: Кисель | F65: 200 | G65: 0 | H65: 0 | I65: 39 | J65: 160 | K65: 54-21х4 | L65: 11.56
D71: итого | F71: =SUM(F62:F70) -> 545 | G71: =SUM(G62:G70) -> 18 | H71: =SUM(H62:H70) -> 19 | I71: =SUM(I62:I70) -> 98 | J71: =SUM(J62:J70) -> 524 | L71: 87.71
A72: =A62 -> 1 | B72: =B62 -> 4 | C72: Обед | D72: закуска
D73: 1 блюдо
D74: 2 блюдо
D75: гарнир
D76: напиток
D77: хлеб бел.
D78: хлеб черн.
D81: итого | F81: =SUM(F72:F80) -> 0 | G81: =SUM(G72:G80) -> 0 | H81: =SUM(H72:H80) -> 0 | I81: =SUM(I72:I80) -> 0 | J81: =SUM(J72:J80) -> 0 | L81: 0
A82: =A62 -> 1 | B82: =B62 -> 4 | C82: Итого за день: | F82: =F71+F81 -> 545 | G82: =G71+G81 -> 18 | H82: =H71+H81 -> 19 | I82: =I71+I81 -> 98 | J82: =J71+J81 -> 524 | L82: 87.71
A83: 1 | B83: 5 | C83: Завтрак | D83: гор.блюдо | E83: Щи со сметаной и говядиной | F83: 250 | G83: 23 | H83: 28 | I83: 29 | J83: 461 | K83: 54-22s | L83: 76.73
D84: хлеб | E84: Хлеб пшеничный | F84: 30 | G84: 2 | H84: 1 | I84: 15 | J84: 70 | K84: пром | L84: 2.62
D85: хлеб | E85: Хлеб ржаной | F85: 30 | G85: 2 | H85: 1 | I85: 21 | J85: 59 | K85: пром | L85: 3.6
D86: гор.напиток | E86: Компот из смеси сухофруктов | F86: 200 | G86: 0 | H86: 0 | I86: 28 | J86: 115 | L86: 4.76
D91: итого | F91: =SUM(F83:F90) -> 510 | G91: =SUM(G83:G90) -> 27 | H91: =SUM(H83:H90) -> 30 | I91: =SUM(I83:I90) -> 93 | J91: =SUM(J83:J90) -> 705 | L91: 87.71
A92: =A83 -> 1 | B92: =B83 -> 5 | C92: Обед | D92: закуска
D93: 1 блюдо
D94: 2 блюдо
D95: гарнир
D96: напиток
D97: хлеб бел.
D98: хлеб черн.
D101: итого | F101: =SUM(F92:F100) -> 0 | G101: =SUM(G92:G100) -> 0 | H101: =SUM(H92:H100) -> 0 | I101: =SUM(I92:I100) -> 0 | J101: =SUM(J92:J100) -> 0 | L101: 0
A102: =A83 -> 1 | B102: =B83 -> 5 | C102: Итого за день: | F102: =F91+F101 -> 510 | G102: =G91+G101 -> 27 | H102: =H91+H101 -> 30 | I102: =I91+I101 -> 93 | J102: =J91+J101 -> 705 | L102: 87.71
A103: 1 | B103: 6 | C103: Завтрак | D103: гор.блюдо | E103: Каша жидкая молочная манная | F103: 250 | G103: 8 | H103: 10 | I103: 38 | J103: 275 | K103: 54-27к | L103: 24.38
D104: хлеб | E104: Хлеб пшеничный | F104: 30 | G104: 2 | H104: 1 | I104: 5 | J104: 70 | K104: 53-19з | L104: 2.62
D105: закуска | E105: Масло сливочное порциями | F105: 20 | G105: 0 | H105: 7 | I105: 0 | J105: 66 | L105: 20.9
D106: гор.напиток | E106: Чай с лимоном с сахаром | F106: 200 | G106: 0 | H106: 0 | I106: 7 | J106: 28 | L106: 5.01
D107: фрукты | E107: Апельсин | F107: 174 | G107: 1 | H107: 0 | I107: 18 | J107: 80 | L107: 34.8
D111: итого | F111: =SUM(F103:F110) -> 674 | G111: =SUM(G103:G110) -> 11 | H111: 18 | I111: 68 | J111: 519 | L111: =SUM(L103:L110) -> 87.71
A112: =A103 -> 1 | B112: =B103 -> 6 | C112: Обед | D112: закуска
D113: 1 блюдо
D114: 2 блюдо
D115: гарнир
D116: напиток
D117: хлеб бел.
D118: хлеб черн.
D121: итого | F121: =SUM(F112:F120) -> 0 | G121: =SUM(G112:G120) -> 0 | H121: 0 | I121: 0 | J121: 0 | L121: =SUM(L112:L120) -> 0
A122: =A103 -> 1 | B122: =B103 -> 6 | C122: Итого за день: | F122: =F111+F121 -> 674 | G122: =G111+G121 -> 11 | H122: 18 | I122: 68 | J122: 519 | L122: =L111+L121 -> 87.71
A123: 2 | B123: 1 | C123: Завтрак | D123: гор.блюдо | E123: Суп гороховый с фрикадельками | F123: 250 | G123: 8 | H123: 6 | I123: 20 | J123: 391 | K123: 54-25с | L123: 35.33
D124: хлеб | E124: Хлеб пшеничный | F124: 30 | G124: 2 | H124: 1 | I124: 15 | J124: 70 | L124: 2.62
D125: закуска | E125: Сыр в нарезке | F125: 20 | G125: 2 | H125: 6 | I125: 0 | J125: 72 | L125: 18.6
D126: гор.напиток | E126: Чай с сахаром | F126: 200 | G126: 0 | H126: 0 | I126: 0 | J126: 27 | L126: 3.16
D127: фрукты | E127: Банан | F127: 140 | G127: 1 | H127: 1 | I127: 20 | J127: 89 | L127: 28
D131: итого | F131: =SUM(F123:F130) -> 640 | G131: =SUM(G123:G130) -> 13 | H131: 14 | I131: 55 | J131: 649 | L131: =SUM(L123:L130) -> 87.71
A132: =A123 -> 2 | B132: =B123 -> 1 | C132: Обед | D132: закуска
D133: 1 блюдо
D134: 2 блюдо
D135: гарнир
D136: напиток
D137: хлеб бел.
D138: хлеб черн.
D141: итого | F141: =SUM(F132:F140) -> 0 | G141: =SUM(G132:G140) -> 0 | H141: 0 | I141: 0 | J141: 0 | L141: =SUM(L132:L140) -> 0
A142: =A123 -> 2 | B142: =B123 -> 1 | C142: Итого за день: | F142: =F131+F141 -> 640 | G142: =G131+G141 -> 13 | H142: =H131+H141 -> 14 | I142: =I131+I141 -> 55 | J142: =J131+J141 -> 649 | L142: 87.71
A143: 2 | B143: 2 | C143: Завтрак | D143: гор.блюдо | E143: Тефтели | F143: 90 | G143: 56 | H143: 6 | I143: 7 | J143: 110 | L143: 35.27
D144: гарнир | E144: Макароны отварные | F144: 200 | G144: 5 | H144: 5 | I144: 33 | J144: 197 | L144: 11.7
D145: хлеб | E145: Хлеб пшеничный | F145: 30 | G145: 2 | H145: 1 | I145: 15 | J145: 70 | L145: 2.62
D146: гор.напиток | E146: Какао с молоком | F146: 200 | G146: 4 | H146: 4 | I146: 18 | J146: 119 | L146: 17.32
D147: фрукты | E147: Банан | F147: 108 | G147: 1 | H147: 1 | I147: 20 | J147: 89 | L147: 20.8
D150: итого | F150: =SUM(F143:F149) -> 628 | G150: =SUM(G143:G149) -> 68 | H150: 17 | I150: 93 | J150: 585 | L150: =SUM(L143:L149) -> 87.71
A151: =A143 -> 2 | B151: =B143 -> 2 | C151: Обед | D151: закуска
D152: 1 блюдо
D153: 2 блюдо
D154: гарнир
D155: напиток
D156: хлеб бел.
D157: хлеб черн.
D160: итого | F160: =SUM(F151:F159) -> 0 | G160: =SUM(G151:G159) -> 0 | H160: 0 | I160: 0 | J160: 0 | L160: =SUM(L151:L159) -> 0
A161: =A143 -> 2 | B161: =B143 -> 2 | C161: Итого за день: | F161: =F150+F160 -> 628 | G161: =G150+G160 -> 68 | H161: =H150+H160 -> 17 | I161: =I150+I160 -> 93 | J161: =J150+J160 -> 585 | L161: 87.71
A162: 2 | B162: 3 | C162: Завтрак | D162: гор.блюдо | E162: Рассольник с фрикадельками | F162: 250 | G162: 6 | H162: 7 | I162: 15 | J162: 369 | L162: 38.95
D163: хлеб | E163: Хлеб пшеничный | F163: 30 | G163: 2 | H163: 1 | I163: 15 | J163: 70 | L163: 2.62
D164: гор.напиток | E164: Кофейный напиток с молоком | F164: 200 | G164: 3 | H164: 7 | I164: 56 | J164: 296 | L164: 15.78
D165: фрукты | E165: Яблоко | F165: 138 | G165: 1 | H165: 0 | I165: 20 | J165: 80 | L165: 30.36
D169: итого | F169: =SUM(F162:F168) -> 618 | G169: =SUM(G162:G168) -> 12 | H169: 15 | I169: 106 | J169: 815 | L169: =SUM(L162:L168) -> 87.71
A170: =A162 -> 2 | B170: =B162 -> 3 | C170: Обед | D170: закуска
D171: 1 блюдо
D172: 2 блюдо
D173: гарнир
D174: напиток
D175: хлеб бел.
D176: хлеб черн.
D179: итого | F179: =SUM(F170:F178) -> 0 | G179: =SUM(G170:G178) -> 0 | H179: 0 | I179: 0 | J179: 0 | L179: =SUM(L170:L178) -> 0
A180: =A162 -> 2 | B180: =B162 -> 3 | C180: Итого за день: | F180: =F169+F179 -> 618 | G180: =G169+G179 -> 12 | H180: =H169+H179 -> 15 | I180: =I169+I179 -> 106 | J180: =J169+J179 -> 815 | L180: 87.71
A181: 2 | B181: 4 | C181: Завтрак | D181: гор.блюдо | E181: Рыба припущенная в молоке (минтай) | F181: 80 | G181: 11 | H181: 6 | I181: 2 | J181: 105 | L181: 21.47
D182: гарнир | E182: Каша гречневая рассыпчатая | F182: 200 | G182: 8 | H182: 6 | I182: 36 | J182: 234 | L182: 9.6
D183: хлеб | E183: Хлеб пшеничный | F183: 30 | G183: 2 | H183: 1 | I183: 15 | J183: 70 | L183: 2.62
D184: гор.напиток | E184: Кисель | F184: 200 | G184: 0 | H184: 0 | I184: 39 | J184: 160 | L184: 11.56
D185: фрукты | E185: Яблоко | F185: 193 | G185: 1 | H185: 0 | I185: 20 | J185: 80 | L185: 42.46
D188: итого | F188: =SUM(F181:F187) -> 703 | G188: =SUM(G181:G187) -> 22 | H188: 13 | I188: 112 | J188: 649 | L188: =SUM(L181:L187) -> 87.71
A189: =A181 -> 2 | B189: =B181 -> 4 | C189: Обед | D189: закуска
D190: 1 блюдо
D191: 2 блюдо
D192: гарнир
D193: напиток
D194: хлеб бел.
D195: хлеб черн.
D198: итого | F198: =SUM(F189:F197) -> 0 | G198: =SUM(G189:G197) -> 0 | H198: 0 | I198: 0 | J198: 0 | L198: =SUM(L189:L197) -> 0
A199: =A181 -> 2 | B199: =B181 -> 4 | C199: Итого за день: | F199: =F188+F198 -> 703 | G199: =G188+G198 -> 22 | H199: =H188+H198 -> 13 | I199: =I188+I198 -> 112 | J199: =J188+J198 -> 649 | L199: 87.71
A200: 2 | B200: 5 | C200: Завтрак | D200: гор.блюдо | E200: Борщ с говядиной | F200: 250 | G200: 2 | H200: 5 | I200: 11 | J200: 312 | L200: 58.13
D201: хлеб | E201: Хлеб пшеничный | F201: 30 | G201: 2 | H201: 1 | I201: 15 | J201: 70 | L201: 2.62
D202: хлеб | E202: Хлеб ржаной | F202: 30 | G202: 2 | H202: 1 | I202: 21 | J202: 59 | L202: 3.6
D203: гор.напиток | E203: Компот из смеси сухофруктов | F203: 200 | G203: 0 | H203: 0 | I203: 28 | J203: 115 | L203: 4.76
D204: закуска | E204: Сыр в нарезке | F204: 20 | G204: 2 | H204: 6 | I204: 0 | J204: 72 | L204: 18.6
D208: итого | F208: 530 | G208: 8 | H208: 13 | I208: 75 | J208: 628 | L208: 87.71
A209: =A200 -> 2 | B209: =B200 -> 5 | C209: Обед | D209: закуска
D210: 1 блюдо
D211: 2 блюдо
D212: гарнир
D213: напиток
D214: хлеб бел.
D215: хлеб черн.
D218: итого | F218: =SUM(F209:F217) -> 0 | G218: =SUM(G209:G217) -> 0 | H218: 0 | I218: 0 | J218: 0 | L218: =SUM(L209:L217) -> 0
A219: =A200 -> 2 | B219: =B200 -> 5 | C219: Итого за день: | F219: =F208+F218 -> 530 | G219: =G208+G218 -> 8 | H219: 13 | I219: 75 | J219: 628 | L219: =L208+L218 -> 87.71
A220: 2 | B220: 6 | C220: Завтрак | D220: гор.блюда | E220: Каша жидкая молочная овсяная | F220: 250 | G220: 7 | H220: 8 | I220: 25 | J220: 193 | L220: 22.18
D221: хлеб | E221: Хлеб пшеничный | F221: 30 | G221: 2 | H221: 1 | I221: 15 | J221: 70 | L221: 2.62
D222: закуска | E222: Масло сливочное порциями | F222: 20 | G222: 0 | H222: 7 | I222: 0 | J222: 66 | L222: 20.9
D223: гор.напиток | E223: Чай с сахаром с лимоном | F223: 200 | G223: 0 | H223: 0 | I223: 7 | J223: 29 | L223: 5.01
D224: фрукты | E224: Апельсин | F224: 185 | G224: 1 | H224: 0 | I224: 18 | J224: 80 | L224: 37
D227: итого | F227: =SUM(F220:F226) -> 685 | G227: =SUM(G220:G226) -> 10 | H227: 16 | I227: 65 | J227: 438 | L227: =SUM(L220:L226) -> 87.71
A228: =A220 -> 2 | B228: =B220 -> 6 | C228: Обед | D228: закуска
D229: 1 блюдо
D230: 2 блюдо
D231: гарнир
D232: напиток
D233: хлеб бел.
D234: хлеб черн.
D237: итого | F237: =SUM(F228:F236) -> 0 | G237: =SUM(G228:G236) -> 0 | H237: 0 | I237: 0 | J237: 0 | L237: =SUM(L228:L236) -> 0
A238: =A220 -> 2 | B238: =B220 -> 6 | C238: Итого за день: | F238: =F227+F237 -> 685 | G238: =G227+G237 -> 10 | H238: 16 | I238: 65 | J238: 438 | L238: =L227+L237 -> 87.71
C239: Среднее значение за период: | F239: =(F22+F42+F61+F82+F102+F122+F142+F161+F180+F199+F219+F238)/(IF(F22=0,0,1)+IF(F42=0,0,1)+IF(F61=0,0,1)+IF(F82=0,0,1)+IF(F102=0,0,1)+IF(F122=0,0,1)+IF(F142=0,0,1)+IF(F161=0,0,1)+IF(F180=0,0,1)+IF(F199=0,0,1)+IF(F219=0,0,1)+IF(F238=0,0,1)) -> 618.6666667 | G239: =(G22+G42+G61+G82+G102+G122+G142+G161+G180+G199+G219+G238)/(IF(G22=0,0,1)+IF(G42=0,0,1)+IF(G61=0,0,1)+IF(G82=0,0,1)+IF(G102=0,0,1)+IF(G122=0,0,1)+IF(G142=0,0,1)+IF(G161=0,0,1)+IF(G180=0,0,1)+IF(G199=0,0,1)+IF(G219=0,0,1)+IF(G238=0,0,1)) -> 24.15083333 | H239: =(H22+H42+H61+H82+H102+H122+H142+H161+H180+H199+H219+H238)/(IF(H22=0,0,1)+IF(H42=0,0,1)+IF(H61=0,0,1)+IF(H82=0,0,1)+IF(H102=0,0,1)+IF(H122=0,0,1)+IF(H142=0,0,1)+IF(H161=0,0,1)+IF(H180=0,0,1)+IF(H199=0,0,1)+IF(H219=0,0,1)+IF(H238=0,0,1)) -> 19.25 | I239: =(I22+I42+I61+I82+I102+I122+I142+I161+I180+I199+I219+I238)/(IF(I22=0,0,1)+IF(I42=0,0,1)+IF(I61=0,0,1)+IF(I82=0,0,1)+IF(I102=0,0,1)+IF(I122=0,0,1)+IF(I142=0,0,1)+IF(I161=0,0,1)+IF(I180=0,0,1)+IF(I199=0,0,1)+IF(I219=0,0,1)+IF(I238=0,0,1)) -> 105.3333333 | J239: =(J22+J42+J61+J82+J102+J122+J142+J161+J180+J199+J219+J238)/(IF(J22=0,0,1)+IF(J42=0,0,1)+IF(J61=0,0,1)+IF(J82=0,0,1)+IF(J102=0,0,1)+IF(J122=0,0,1)+IF(J142=0,0,1)+IF(J161=0,0,1)+IF(J180=0,0,1)+IF(J199=0,0,1)+IF(J219=0,0,1)+IF(J238=0,0,1)) -> 625.6583333 | L239: =(L22+L42+L61+L82+L102+L122+L142+L161+L180+L199+L219+L238)/(IF(L22=0,0,1)+IF(L42=0,0,1)+IF(L61=0,0,1)+IF(L82=0,0,1)+IF(L102=0,0,1)+IF(L122=0,0,1)+IF(L142=0,0,1)+IF(L161=0,0,1)+IF(L180=0,0,1)+IF(L199=0,0,1)+IF(L219=0,0,1)+IF(L238=0,0,1)) -> 87.69666667
